[Event "VII Famalicao Open 2019"]
[Site "Famalicao"]
[Date "2019.07.28"]
[Round "1.1"]
[White "Rabello, David Sousa"]
[Black "Grigoryan, Karen H."]
[Result "0-1"]
[ECO "B48"]
[WhiteElo "1828"]
[BlackElo "2549"]
[Annotator "RC"]
[PlyCount "44"]
[EventDate "2019.07.28"]
[EventType "swiss"]
[EventCountry "POR"]
[SourceTitle "playchess.com"]
[Source "ChessBase"]
[SourceQuality "1"]
[TimeControl "5400+30"]

1. e4 {[%emt 0:02:02]} c5 {[%emt 0:00:00]} 2. Nf3 {[%emt 0:02:34]} e6 {[%emt 0:00:15]} 3. d4 {[%emt 0:02:56]} cxd4 {[%emt 0:00:18]} 4. Nxd4 {[%emt 0:01:48]} Nc6 {[%emt 0:00:38]} 5. Nc3 {[%emt 0:02:44]} Qc7 {[%emt 0:00:22]} 6. Be3 {[%emt 0:03:10]} Nf6 {[%emt 0:01:26]} 7. Be2 {[%emt 0:02:43]} a6 {[%emt 0:00:39]} 8. Qd2 {[%emt 0:02:57]} Bb4 {[%emt 0:00:35]} 9. a3 {[%emt 0:01:30]} Nxe4 {[%emt 0:00:24]} 10. Qd3 {[%emt 0:02:53]} Bxc3+ {[%emt 0:00:28]} 11. bxc3 {[%emt 0:00:24]} Ne5 {[%emt 0:00:08]} 12. Qxe4 {[%emt 0:01:14]} Qxc3+ {[%emt 0:00:07]} 13. Bd2 Qxa1+ {[%emt 0:00:12]} 14. Bd1 {[%emt 0:06:48]} Nc4 {[%emt 0:01:13]} 15. Qd3 {[%emt 0:03:29]} Nb2 {[%emt 0:00:16]} 16. Qf3 {[%emt 0:03:02]} Nxd1 {[%emt 0:01:04]} 17. Qxd1 {[%emt 0:01:59]} Qxd4 {[%emt 0:00:09]} 18. O-O d6 {[%emt 0:00:41]} 19. Qe2 {[%emt 0:05:49]} Bd7 {[%emt 0:00:25]} 20. Be3 {[%emt 0:01:24]} Qe5 {[%emt 0:00:18]} 21. Rb1 {[%emt 0:02:46]} Bc6 {[%emt 0:00:10]} 22. Qd3 {[%emt 0:00:58]} h5 {[%emt 0:00:15]} 0-1

[Event "VII Famalicao Open 2019"]
[Site "Famalicao"]
[Date "2019.07.28"]
[Round "1.3"]
[White "Carvalho, Vitor Hugo Pina Soar"]
[Black "Galego, Luis"]
[Result "0-1"]
[ECO "A05"]
[WhiteElo "1860"]
[BlackElo "2513"]
[Annotator "ChessBase"]
[PlyCount "52"]
[EventDate "2019.07.28"]
[EventType "swiss"]
[EventCountry "POR"]
[TimeControl "5400+30"]

1. Nf3 {[%emt 0:00:00]} Nf6 2. g3 {[%emt 0:00:39]} d6 {[%emt 0:00:02]} 3. d4 {[%emt 0:00:50]} Nbd7 {[%emt 0:01:06]} 4. Bg2 {[%emt 0:00:55]} e5 {[%emt 0:00:07]} 5. dxe5 {[%emt 0:03:19]} dxe5 {[%emt 0:00:08]} 6. O-O {[%emt 0:01:39]} Bc5 {[%emt 0:00:06]} 7. e3 {[%emt 0:02:01]} O-O {[%emt 0:00:29]} 8. b3 {[%emt 0:01:49]} Qe7 {[%emt 0:01:16]} 9. Bb2 {[%emt 0:01:21]} a5 {[%emt 0:01:11]} 10. a3 {[%emt 0:02:09]} e4 {[%emt 0:06:39]} 11. Nfd2 {[%emt 0:01:55]} Rd8 {[%emt 0:06:54]} 12. Nc3 {[%emt 0:02:01]} Nb6 {[%emt 0:04:36]} 13. Na4 {[%emt 0:12:23]} Nxa4 {[%emt 0:00:39]} 14. Bxf6 {[%emt 0:01:06]} Qxf6 {[%emt 0:01:38]} 15. Nxe4 {[%emt 0:00:23]} Qe7 {[%emt 0:01:57]} 16. Qh5 {[%emt 0:02:06]} g6 {[%emt 0:01:19]} 17. Qh6 {[%emt 0:04:43]} Nb6 {[%emt 0:03:50]} 18. Ng5 {[%emt 0:03:43]} f6 {[%emt 0:00:09]} 19. Ne4 {[%emt 0:04:41]} Bd6 {[%emt 0:04:42]} 20. Rad1 {[%emt 0:06:53]} Bf5 {[%emt 0:01:20]} 21. Nxd6 {[%emt 0:02:44]} Rxd6 {[%emt 0:00:44]} 22. e4 {[%emt 0:12:22]} Bg4 23. Rde1 {[%emt 0:00:30]} Nd7 {[%emt 0:03:22]} 24. Qh4 {[%emt 0:00:32]} Ne5 {[%emt 0:04:24]} 25. f4 {[%emt 0:03:26]} g5 {[%emt 0:00:06]} 26. fxg5 {[%emt 0:01:39]} fxg5 0-1

[Event "VII Famalicao Open 2019"]
[Site "Famalicao"]
[Date "2019.07.29"]
[Round "2.1"]
[White "Grigoryan, Karen H."]
[Black "Fidalgo, Daniel Neves"]
[Result "1-0"]
[ECO "A00"]
[WhiteElo "2549"]
[BlackElo "2087"]
[Annotator "ChessBase"]
[PlyCount "139"]
[EventDate "2019.07.28"]
[EventType "swiss"]
[EventCountry "POR"]
[SourceTitle "playchess.com"]
[Source "ChessBase"]
[SourceQuality "1"]
[TimeControl "5400+30"]

1. g3 {[%emt 0:00:00]} g6 {[%emt 0:00:00]} 2. Bg2 {[%emt 0:00:00]} Bg7 {[%emt 0:00:40]} 3. e4 {[%emt 0:00:11]} e5 {[%emt 0:00:26]} 4. Ne2 {[%emt 0:00:54]} Ne7 {[%emt 0:00:17]} 5. d4 {[%emt 0:02:41]} d6 {[%emt 0:07:58]} 6. dxe5 {[%emt 0:00:51]} dxe5 {[%emt 0:00:37]} 7. Qxd8+ {[%emt 0:00:08]} Kxd8 {[%emt 0:00:07]} 8. Na3 {[%emt 0:00:57]} Be6 {[%emt 0:01:31]} 9. Bg5 {[%emt 0:00:11]} c6 {[%emt 0:04:08]} 10. O-O-O+ {[%emt 0:01:10]} Nd7 {[%emt 0:03:38]} 11. Rhf1 {[%emt 0:00:22]} h6 {[%emt 0:05:43]} 12. Bd2 {[%emt 0:00:16]} Kc7 {[%emt 0:02:28]} 13. Bb4 {[%emt 0:00:53]} Nc8 {[%emt 0:01:48]} 14. f4 {[%emt 0:00:39]} exf4 {[%emt 0:04:22]} 15. gxf4 {[%emt 0:04:59]} Bg4 {[%emt 0:02:16]} 16. Bf3 {[%emt 0:00:32]} Bxf3 17. Rxf3 {[%emt 0:00:07]} a5 {[%emt 0:01:41]} 18. Rfd3 {[%emt 0:04:19]} Rd8 {[%emt 0:10:53]} 19. Bc3 {[%emt 0:10:02]} Bxc3 {[%emt 0:04:52]} 20. Rxc3 {[%emt 0:00:06]} Nd6 {[%emt 0:01:18]} 21. e5 {[%emt 0:04:50]} Ne4 {[%emt 0:03:52]} 22. Re3 {[%emt 0:00:50]} Ndc5 {[%emt 0:02:08]} 23. Re1 {[%emt 0:02:39]} b5 {[%emt 0:03:58]} 24. Nb1 {[%emt 0:00:24]} Rd7 {[%emt 0:05:40]} 25. Ng3 {[%emt 0:02:42]} Nxg3 {[%emt 0:03:50]} 26. hxg3 {[%emt 0:00:07]} h5 {[%emt 0:00:14]} 27. Nd2 {[%emt 0:00:54]} Rad8 {[%emt 0:00:40]} 28. Nf3 {[%emt 0:00:18]} Ne6 {[%emt 0:01:08]} 29. Nh4 {[%emt 0:05:26]} Ng7 {[%emt 0:03:08]} 30. R3e2 {[%emt 0:05:15]} Rg8 {[%emt 0:02:01]} 31. Rg2 {[%emt 0:02:41]} Ne6 {[%emt 0:06:13]} 32. Nf3 {[%emt 0:01:43]} Rh8 {[%emt 0:02:06]} 33. b3 {[%emt 0:02:09]} Rdd8 {[%emt 0:00:51]} 34. Kb2 {[%emt 0:01:16]} Kb6 {[%emt 0:01:18]} 35. Ra1 {[%emt 0:01:04]} Rd7 {[%emt 0:02:17]} 36. a4 {[%emt 0:00:37]} Rhd8 {[%emt 0:00:42]} 37. Rgg1 {[%emt 0:00:30]} b4 {[%emt 0:00:38]} 38. Raf1 {[%emt 0:05:24]} Rd5 {[%emt 0:03:04]} 39. Re1 {[%emt 0:02:17]} R8d7 {[%emt 0:01:50]} 40. Kc1 {[%emt 0:01:06]} Nd4 {[%emt 0:01:16]} 41. Nd2 {[%emt 0:00:43]} Kc7 {[%emt 0:00:19]} 42. Rg2 {[%emt 0:00:45]} Nf5 {[%emt 0:01:36]} 43. Nc4 {[%emt 0:00:34]} Rd8 {[%emt 0:00:34]} 44. Rgg1 {[%emt 0:01:44]} Nd4 {[%emt 0:00:43]} 45. Rh1 {[%emt 0:01:09]} Nf5 {[%emt 0:01:01]} 46. Reg1 {[%emt 0:00:08]} Nh6 {[%emt 0:01:33]} 47. Rh2 {[%emt 0:00:44]} Ng4 {[%emt 0:00:15]} 48. Re2 {[%emt 0:00:15]} Re8 {[%emt 0:01:06]} 49. Rd2 {[%emt 0:02:29]} f6 {[%emt 0:01:11]} 50. Re2 {[%emt 0:01:52]} fxe5 {[%emt 0:01:35]} 51. fxe5 {[%emt 0:00:37]} Re6 {[%emt 0:00:22]} 52. Rf1 {[%emt 0:00:26]} Kd8 {[%emt 0:00:44]} 53. Rd1 {[%emt 0:02:21]} Ke7 {[%emt 0:00:07]} 54. Rde1 {[%emt 0:03:53]} Nh6 {[%emt 0:00:43]} 55. Kb2 {[%emt 0:00:29]} Nf5 {[%emt 0:00:42]} 56. Rg1 {[%emt 0:00:43]} Nh6 {[%emt 0:00:22]} 57. c3 {[%emt 0:00:34]} Ng4 {[%emt 0:01:13]} 58. Rge1 {[%emt 0:00:18]} Rd3 {[%emt 0:01:07]} 59. cxb4 {[%emt 0:00:08]} axb4 {[%emt 0:00:10]} 60. a5 {[%emt 0:00:05]} c5 {[%emt 0:00:24]} 61. Ra1 {[%emt 0:05:01]} Ra6 {[%emt 0:00:17]} 62. Rg1 {[%emt 0:00:09]} Ke6 {[%emt 0:00:31]} 63. Rf1 {[%emt 0:02:06]} Rxg3 {[%emt 0:00:38]} 64. Rd1 {[%emt 0:00:07]} Rf3 {[%emt 0:02:12]} 65. Rd6+ {[%emt 0:00:12]} Rxd6 {[%emt 0:00:06]} 66. exd6+ {[%emt 0:00:05]} Kd7 {[%emt 0:00:19]} 67. a6 {[%emt 0:02:01]} Rf8 {[%emt 0:01:18]} 68. Re7+ {[%emt 0:00:51]} Kc6 {[%emt 0:00:22]} 69. Rc7+ {[%emt 0:00:37]} Kb5 {[%emt 0:00:17]} 70. d7 {[%emt 0:00:26]} 1-0

[Event "VII Famalicao Open 2019"]
[Site "Famalicao"]
[Date "2019.07.29"]
[Round "2.2"]
[White "Pintor, Simao Maciel Abranch"]
[Black "Martinez Duany, Lelys Stanley"]
[Result "0-1"]
[ECO "A07"]
[WhiteElo "2082"]
[BlackElo "2535"]
[Annotator "ChessBase"]
[PlyCount "114"]
[EventDate "2019.07.28"]
[EventType "swiss"]
[EventCountry "POR"]
[SourceTitle "playchess.com"]
[Source "ChessBase"]
[SourceQuality "1"]
[TimeControl "5400+30"]

1. Nf3 Nf6 {[%emt 0:08:08]} 2. g3 {[%emt 0:00:00]} d5 {[%emt 0:00:55]} 3. Bg2 {[%emt 0:00:03]} c6 {[%emt 0:00:12]} 4. O-O {[%emt 0:00:10]} Bg4 {[%emt 0:00:17]} 5. d4 {[%emt 0:00:18]} Nbd7 {[%emt 0:00:46]} 6. b3 {[%emt 0:00:51]} e6 {[%emt 0:01:01]} 7. Bb2 {[%emt 0:00:47]} h5 {[%emt 0:01:47]} 8. Ne5 {[%emt 0:07:40]} h4 {[%emt 0:04:07]} 9. Nd2 {[%emt 0:09:41]} hxg3 {[%emt 0:00:39]} 10. Nxg4 {[%emt 0:06:37]} Nxg4 {[%emt 0:00:46]} 11. hxg3 {[%emt 0:00:06]} Qg5 {[%emt 0:00:52]} 12. e4 {[%emt 0:03:43]} Qh5 {[%emt 0:04:32]} 13. Re1 {[%emt 0:00:19]} Ndf6 {[%emt 0:01:30]} 14. exd5 {[%emt 0:11:06]} cxd5 {[%emt 0:00:42]} 15. Qe2 {[%emt 0:04:56]} a6 {[%emt 0:01:54]} 16. c4 {[%emt 0:01:40]} Bd6 {[%emt 0:02:28]} 17. cxd5 {[%emt 0:11:53]} Nxd5 {[%emt 0:02:59]} 18. Ne4 {[%emt 0:17:36]} Bb4 {[%emt 0:07:45]} 19. Rec1 {[%emt 0:04:32]} O-O {[%emt 0:03:23]} 20. Nc5 {[%emt 0:02:23]} b6 {[%emt 0:02:54]} 21. Nd7 {[%emt 0:02:39]} Rfd8 {[%emt 0:00:57]} 22. Ne5 {[%emt 0:03:20]} Qh2+ {[%emt 0:00:23]} 23. Kf1 {[%emt 0:00:05]} Nxe5 {[%emt 0:00:23]} 24. Qxe5 {[%emt 0:02:36]} Ra7 {[%emt 0:01:38]} 25. Rc6 {[%emt 0:01:27]} Rad7 {[%emt 0:00:18]} 26. a3 {[%emt 0:02:13]} Be7 {[%emt 0:00:24]} 27. Re1 {[%emt 0:01:28]} Bf6 {[%emt 0:00:14]} 28. Qe2 {[%emt 0:00:22]} a5 {[%emt 0:00:44]} 29. Qg4 {[%emt 0:01:54]} Rd6 {[%emt 0:01:50]} 30. Rxd6 {[%emt 0:01:04]} Rxd6 {[%emt 0:00:11]} 31. Bc1 {[%emt 0:00:02]} Ne7 {[%emt 0:00:51]} 32. Rd1 {[%emt 0:01:05]} Rd7 {[%emt 0:02:40]} 33. Bg5 {[%emt 0:01:43]} Bxg5 {[%emt 0:01:13]} 34. Qxg5 {[%emt 0:00:02]} Qh7 {[%emt 0:01:10]} 35. Qb5 {[%emt 0:00:40]} Qc2 {[%emt 0:00:21]} 36. Bf3 {[%emt 0:00:37]} Qc7 {[%emt 0:00:24]} 37. Kg2 {[%emt 0:00:39]} Qd8 {[%emt 0:01:41]} 38. Be4 {[%emt 0:01:51]} Nd5 {[%emt 0:00:35]} 39. Qd3 {[%emt 0:00:48]} Nf6 {[%emt 0:00:39]} 40. Rh1 {[%emt 0:00:26]} Rxd4 {[%emt 0:00:25]} 41. Bh7+ {[%emt 0:00:03]} Kf8 {[%emt 0:00:12]} 42. Qf3 {[%emt 0:00:58]} Qd5 {[%emt 0:01:03]} 43. Bb1 {[%emt 0:00:23]} Ke7 {[%emt 0:00:46]} 44. Rc1 {[%emt 0:00:18]} Kd7 {[%emt 0:01:23]} 45. Rc3 {[%emt 0:00:33]} Rd2 {[%emt 0:01:04]} 46. Rd3 {[%emt 0:00:50]} Rxd3 {[%emt 0:00:18]} 47. Bxd3 {[%emt 0:00:06]} Kd6 {[%emt 0:00:25]} 48. Bc4 {[%emt 0:00:33]} Qxf3+ {[%emt 0:00:55]} 49. Kxf3 {[%emt 0:00:03]} Kc5 {[%emt 0:00:24]} 50. a4 {[%emt 0:00:45]} Kd4 {[%emt 0:00:32]} 51. g4 {[%emt 0:00:37]} g5 {[%emt 0:00:35]} 52. Bb5 {[%emt 0:00:40]} Kc3 {[%emt 0:01:45]} 53. Bc4 {[%emt 0:00:43]} Ne8 {[%emt 0:00:38]} 54. Ke3 {[%emt 0:00:33]} Nd6 {[%emt 0:00:09]} 55. f4 {[%emt 0:00:29]} Nxc4+ {[%emt 0:00:58]} 56. bxc4 {[%emt 0:00:03]} gxf4+ {[%emt 0:00:28]} 57. Kxf4 {[%emt 0:00:08]} f6 {[%emt 0:00:06]} 0-1

[Event "VII Famalicao Open 2019"]
[Site "Famalicao"]
[Date "2019.07.29"]
[Round "2.3"]
[White "Galego, Luis"]
[Black "Fernandes, Joao Pedro Murtinho"]
[Result "1-0"]
[ECO "B30"]
[WhiteElo "2513"]
[BlackElo "2080"]
[Annotator "ChessBase"]
[PlyCount "65"]
[EventDate "2019.07.28"]
[EventType "swiss"]
[EventCountry "POR"]
[SourceTitle "playchess.com"]
[Source "ChessBase"]
[SourceQuality "1"]
[TimeControl "5400+30"]

1. e4 {[%emt 0:00:00]} c5 {[%emt 0:00:00]} 2. Nf3 {[%emt 0:00:00]} Nc6 {[%emt 0:00:00]} 3. Bb5 {[%emt 0:00:12]} e6 4. Bxc6 {[%emt 0:01:12]} bxc6 {[%emt 0:00:22]} 5. O-O {[%emt 0:00:10]} d6 {[%emt 0:04:38]} 6. e5 {[%emt 0:02:48]} Ne7 7. exd6 {[%emt 0:01:59]} Ng6 {[%emt 0:05:54]} 8. d4 {[%emt 0:01:40]} Bxd6 {[%emt 0:02:39]} 9. dxc5 {[%emt 0:01:40]} Bxc5 {[%emt 0:00:20]} 10. Qxd8+ {[%emt 0:00:12]} Kxd8 {[%emt 0:00:11]} 11. Ng5 {[%emt 0:00:09]} Ke7 {[%emt 0:01:28]} 12. Ne4 {[%emt 0:00:36]} Bb6 {[%emt 0:02:53]} 13. b3 {[%emt 0:00:21]} Ba6 {[%emt 0:02:06]} 14. Ba3+ {[%emt 0:00:23]} c5 {[%emt 0:00:59]} 15. Re1 {[%emt 0:03:34]} Rac8 {[%emt 0:12:43]} 16. Nbc3 {[%emt 0:01:48]} Ba5 {[%emt 0:09:14]} 17. Re3 {[%emt 0:00:17]} Bb4 {[%emt 0:04:36]} 18. Bb2 {[%emt 0:09:22]} Rhd8 {[%emt 0:09:22]} 19. Na4 {[%emt 0:02:33]} Bd2 {[%emt 0:00:45]} 20. Nxd2 {[%emt 0:00:58]} Rxd2 {[%emt 0:00:20]} 21. c4 {[%emt 0:00:30]} Rcd8 {[%emt 0:07:34]} 22. Ree1 {[%emt 0:05:17]} Nf4 {[%emt 0:05:55]} 23. Ba3 {[%emt 0:00:19]} Nd3 {[%emt 0:01:45]} 24. Red1 {[%emt 0:02:50]} Rxd1+ {[%emt 0:06:40]} 25. Rxd1 {[%emt 0:00:06]} Nb4 {[%emt 0:06:16]} 26. Rxd8 {[%emt 0:00:25]} Kxd8 {[%emt 0:00:03]} 27. Nxc5 {[%emt 0:00:17]} Nc2 {[%emt 0:00:08]} 28. Bb2 {[%emt 0:00:10]} Bc8 {[%emt 0:00:14]} 29. Bxg7 {[%emt 0:00:11]} Ke7 {[%emt 0:00:23]} 30. Bc3 {[%emt 0:00:33]} f5 {[%emt 0:01:14]} 31. Kf1 {[%emt 0:01:01]} Kd6 {[%emt 0:01:10]} 32. Nd3 {[%emt 0:00:07]} Bb7 {[%emt 0:00:24]} 33. Ke2 {[%emt 0:00:31] Kd5} 1-0

[Event "VII Famalicao Open 2019"]
[Site "Famalicao"]
[Date "2019.07.29"]
[Round "2.4"]
[White "Novais, Carlos Joao Fernande"]
[Black "Spraggett, Kevin"]
[Result "0-1"]
[ECO "A45"]
[WhiteElo "2077"]
[BlackElo "2511"]
[Annotator "ChessBase"]
[PlyCount "38"]
[EventDate "2019.07.28"]
[EventType "swiss"]
[EventCountry "POR"]
[SourceTitle "playchess.com"]
[Source "ChessBase"]
[SourceQuality "1"]
[TimeControl "5400+30"]

1. d4 {[%emt 0:00:00]} Nf6 {[%emt 0:00:00]} 2. Bg5 {[%emt 0:00:00]} Ne4 {[%emt 0:00:29]} 3. Bf4 {[%emt 0:00:04]} Nc6 {[%emt 0:00:57]} 4. f3 {[%emt 0:04:37]} e5 5. dxe5 {[%emt 0:00:30]} g5 {[%emt 0:13:07]} 6. Be3 {[%emt 0:09:33]} Nc5 {[%emt 0:00:25]} 7. Qd2 {[%emt 0:09:36]} Rg8 {[%emt 0:02:27]} 8. Nh3 {[%emt 0:03:59]} Ne6 {[%emt 0:03:45]} 9. Nc3 {[%emt 0:07:34]} Nxe5 {[%emt 0:02:48]} 10. b3 {[%emt 0:00:19]} Bb4 {[%emt 0:10:09]} 11. a3 {[%emt 0:02:01]} Ba5 {[%emt 0:01:43]} 12. Bd4 {[%emt 0:07:05]} Nxd4 {[%emt 0:09:15]} 13. Qxd4 {[%emt 0:00:16]} d6 {[%emt 0:07:46]} 14. e3 {[%emt 0:05:11]} Bxh3 {[%emt 0:05:11]} 15. Qa4+ {[%emt 0:00:46]} c6 {[%emt 0:01:39]} 16. b4 {[%emt 0:00:41]} Bb6 {[%emt 0:03:01]} 17. gxh3 {[%emt 0:00:55]} Nxf3+ {[%emt 0:00:26]} 18. Kf2 {[%emt 0:02:14]} Ne5 {[%emt 0:04:28]} 19. Nd5 {[%emt 0:03:04]} Kf8 {[%emt 0:00:32]} 0-1

[Event "VII Famalicao Open 2019"]
[Site "Famalicao"]
[Date "2019.07.29"]
[Round "2.5"]
[White "Petkov, Vladimir"]
[Black "Romano, Joao"]
[Result "1-0"]
[ECO "D30"]
[WhiteElo "2497"]
[BlackElo "2053"]
[Annotator "ChessBase"]
[PlyCount "67"]
[EventDate "2019.07.28"]
[EventType "swiss"]
[EventCountry "POR"]
[SourceTitle "playchess.com"]
[Source "ChessBase"]
[SourceQuality "1"]
[TimeControl "5400+30"]

1. d4 d5 2. c4 e6 3. Nf3 a6 {[%emt 1:31:30]} 4. cxd5 exd5 5. Nc3 h6 6. Qb3 Nf6 {[%emt 0:01:30]} 7. Bf4 Ra7 8. e4 Be6 9. e5 Ne4 {[%emt 0:01:30]} 10. Bd3 Nc6 {[%emt 0:00:30]} 11. a3 Be7 12. Be3 Nxc3 13. Qxc3 Qd7 {[%emt 0:01:30]} 14. Qc2 O-O 15. Ng1 Na5 {[%emt 0:01:00]} 16. Ne2 Raa8 17. f4 f5 18. O-O Rac8 19. Rad1 Nc4 20. Bf2 b5 21. h3 a5 22. Kh2 b4 23. axb4 axb4 24. b3 Na3 25. Qd2 Nb5 26. Rc1 Ra8 {[%emt 0:05:30]} 27. Bxb5 Qxb5 28. Rxc7 Rfe8 29. Rfc1 Rac8 30. Ng1 Rxc7 31. Rxc7 Bc8 32. Qc2 Be6 33. Nf3 Bf8 34. Nh4 1-0

[Event "VII Famalicao Open 2019"]
[Site "Famalicao"]
[Date "2019.07.29"]
[Round "2.6"]
[White "Fernandes, Ricardo Paulos"]
[Black "Damaso, Rui"]
[Result "0-1"]
[ECO "B59"]
[WhiteElo "2007"]
[BlackElo "2425"]
[Annotator "NA"]
[PlyCount "66"]
[EventDate "2019.07.28"]
[EventType "swiss"]
[EventCountry "POR"]
[SourceTitle "playchess.com"]
[Source "ChessBase"]
[SourceQuality "1"]
[TimeControl "5400+30"]

1. e4 {[%emt 0:00:00]} c5 {[%emt 0:13:25]} 2. Nf3 {[%emt 0:00:00]} d6 {[%emt 0:00:10]} 3. d4 {[%emt 0:00:00]} cxd4 {[%emt 0:00:08]} 4. Nxd4 {[%emt 0:00:00]} Nf6 {[%emt 0:00:07]} 5. Nc3 {[%emt 0:00:00]} Nc6 {[%emt 0:02:54]} 6. Be2 {[%emt 0:03:13]} e5 {[%emt 0:00:37]} 7. Nb3 {[%emt 0:00:06]} Be7 {[%emt 0:00:18]} 8. O-O {[%emt 0:00:11]} O-O {[%emt 0:02:53]} 9. Be3 {[%emt 0:03:08]} a5 {[%emt 0:02:27]} 10. a4 {[%emt 0:02:31]} Nb4 {[%emt 0:02:19]} 11. f4 {[%emt 0:04:07]} Be6 {[%emt 0:03:22]} 12. Nd2 {[%emt 0:03:44]} d5 {[%emt 0:12:06]} 13. fxe5 {[%emt 0:08:27]} d4 {[%emt 0:00:55]} 14. Bf4 {[%emt 0:16:37]} dxc3 {[%emt 0:02:17]} 15. bxc3 {[%emt 0:00:06]} Nfd5 {[%emt 0:08:58]} 16. exd5 {[%emt 0:01:32]} Nxd5 {[%emt 0:00:23]} 17. Ne4 {[%emt 0:02:46]} Nxf4 {[%emt 0:05:34]} 18. Rxf4 {[%emt 0:01:49]} Qc7 {[%emt 0:00:12]} 19. Nd6 {[%emt 0:16:16]} Rad8 {[%emt 0:02:06]} 20. Rd4 {[%emt 0:01:16]} Qxc3 {[%emt 0:06:06]} 21. Kh1 {[%emt 0:05:00]} Qc5 {[%emt 0:11:39]} 22. c3 {[%emt 0:01:40]} Qxe5 {[%emt 0:06:40]} 23. Nxb7 {[%emt 0:01:19]} Rc8 {[%emt 0:00:06]} 24. Rc1 {[%emt 0:05:35]} Ba3 {[%emt 0:01:05]} 25. Rb1 {[%emt 0:07:12]} Rxc3 {[%emt 0:00:35]} 26. Rb5 {[%emt 0:10:17]} Qc7 {[%emt 0:01:11]} 27. Qf1 {[%emt 0:01:44]} Bb4 {[%emt 0:00:38]} 28. Qf4 {[%emt 0:02:45]} Rc1+ {[%emt 0:02:14]} 29. Bf1 {[%emt 0:00:05]} Qxf4 {[%emt 0:01:13]} 30. Rxf4 {[%emt 0:00:03]} Bc4 {[%emt 0:00:41]} 31. Rbf5 {[%emt 0:00:37]} Rxf1+ {[%emt 0:00:51]} 32. Rxf1 {[%emt 0:00:04]} Bxf1 {[%emt 0:00:08]} 33. Rxf1 {[%emt 0:00:03]} Rb8 {[%emt 0:00:06]} 0-1

[Event "VII Famalicao Open 2019"]
[Site "Famalicao"]
[Date "2019.07.29"]
[Round "2.7"]
[White "Campora, Daniel H."]
[Black "Ribeiro, Bruno"]
[Result "1-0"]
[ECO "B50"]
[WhiteElo "2420"]
[BlackElo "2102"]
[Annotator "NA"]
[PlyCount "119"]
[EventDate "2019.07.28"]
[EventType "swiss"]
[EventCountry "POR"]
[SourceTitle "playchess.com"]
[Source "ChessBase"]
[SourceQuality "1"]
[TimeControl "5400+30"]

1. e4 {[%emt 0:00:00]} c5 {[%emt 0:01:43]} 2. Nf3 {[%emt 0:00:00]} d6 {[%emt 0:00:11]} 3. c3 {[%emt 0:00:03]} Nf6 {[%emt 0:01:02]} 4. Bd3 {[%emt 0:00:07]} Bg4 {[%emt 0:01:58]} 5. O-O {[%emt 0:00:59]} Nc6 {[%emt 0:00:22]} 6. h3 {[%emt 0:00:10]} Bh5 {[%emt 0:01:11]} 7. Re1 {[%emt 0:00:07]} e6 {[%emt 0:01:41]} 8. Bf1 {[%emt 0:01:04]} Be7 {[%emt 0:03:16]} 9. d3 {[%emt 0:00:29]} O-O {[%emt 0:00:55]} 10. Nbd2 {[%emt 0:00:41]} a6 {[%emt 0:03:02]} 11. g4 {[%emt 0:03:28]} Bg6 {[%emt 0:00:27]} 12. Nh4 {[%emt 0:00:17]} d5 {[%emt 0:08:18]} 13. f4 {[%emt 0:08:48]} dxe4 14. dxe4 {[%emt 0:07:08]} Nd7 {[%emt 0:32:44]} 15. Nxg6 {[%emt 0:12:35]} hxg6 {[%emt 0:00:21]} 16. Nf3 {[%emt 0:00:53]} b5 {[%emt 0:04:49]} 17. Be3 {[%emt 0:09:16]} c4 {[%emt 0:02:39]} 18. Qc2 {[%emt 0:05:23]} Qc7 {[%emt 0:01:06]} 19. Qf2 {[%emt 0:02:06]} Na5 {[%emt 0:03:16]} 20. e5 {[%emt 0:01:52]} Nc5 {[%emt 0:03:45]} 21. Bd4 {[%emt 0:01:14]} Nab7 {[%emt 0:02:47]} 22. Re3 {[%emt 0:02:34]} Nd7 {[%emt 0:04:59]} 23. Rae1 {[%emt 0:01:24]} Nbc5 {[%emt 0:00:46]} 24. Ng5 {[%emt 0:14:07]} Nb6 {[%emt 0:06:00]} 25. Rf3 {[%emt 0:03:13]} Nd5 {[%emt 0:01:22]} 26. Qh4 {[%emt 0:06:01]} Bxg5 {[%emt 0:00:35]} 27. Qxg5 {[%emt 0:00:27]} Rac8 {[%emt 0:00:46]} 28. Qh4 {[%emt 0:05:01]} Qe7 {[%emt 0:04:46]} 29. Qf2 {[%emt 0:00:49]} Rc7 {[%emt 0:01:16]} 30. g5 {[%emt 0:04:11]} Rfc8 {[%emt 0:02:10]} 31. h4 {[%emt 0:00:26]} Qe8 {[%emt 0:00:37]} 32. Rh3 {[%emt 0:02:31]} Ne7 {[%emt 0:02:11]} 33. Bxc5 {[%emt 0:01:29]} Rxc5 {[%emt 0:00:09]} 34. Bg2 {[%emt 0:00:22]} R5c7 {[%emt 0:01:08]} 35. Be4 {[%emt 0:01:27]} Qd7 {[%emt 0:01:14]} 36. h5 {[%emt 0:02:54]} Rd8 {[%emt 0:00:18]} 37. h6 {[%emt 0:01:30]} Qd2 {[%emt 0:00:23]} 38. hxg7 {[%emt 0:00:42]} Qxf2+ {[%emt 0:00:27]} 39. Kxf2 {[%emt 0:00:07]} Kxg7 {[%emt 0:00:27]} 40. Reh1 {[%emt 0:00:18]} Rcd7 {[%emt 0:03:06]} 41. Rh7+ {[%emt 0:00:39]} Kf8 {[%emt 0:00:05]} 42. Rh8+ {[%emt 0:00:22]} Ng8 {[%emt 0:00:05]} 43. Ke3 {[%emt 0:00:19]} Rd2 {[%emt 0:01:12]} 44. R8h2 {[%emt 0:00:22]} Rxh2 {[%emt 0:00:39]} 45. Rxh2 {[%emt 0:00:11]} Ne7 {[%emt 0:00:47]} 46. Rh8+ {[%emt 0:00:54]} Ng8 {[%emt 0:00:05]} 47. Ke2 {[%emt 0:01:55]} Kg7 {[%emt 0:00:37]} 48. Rh1 {[%emt 0:00:25]} Ne7 {[%emt 0:00:25]} 49. Ra1 {[%emt 0:00:47]} Nd5 {[%emt 0:00:14]} 50. Bxd5 {[%emt 0:00:28]} exd5 {[%emt 0:00:40]} 51. Ke3 {[%emt 0:00:50]} Kf8 {[%emt 0:00:39]} 52. Kd4 {[%emt 0:00:31]} Ke7 {[%emt 0:00:05]} 53. a4 {[%emt 0:00:06]} Ke6 {[%emt 0:00:22]} 54. axb5 {[%emt 0:00:06]} axb5 {[%emt 0:00:12]} 55. Ra6+ {[%emt 0:00:05]} Ke7 {[%emt 0:00:28]} 56. Rb6 {[%emt 0:00:09]} Rd7 {[%emt 0:00:32]} 57. Rxb5 {[%emt 0:00:14]} Ke6 {[%emt 0:00:07]} 58. Rb6+ {[%emt 0:00:12]} Ke7 {[%emt 0:00:10]} 59. Kc5 {[%emt 0:00:19]} Rd8 {[%emt 0:00:49]} 60. Rd6 {[%emt 0:00:46]} 1-0